bitfinex/quotes_BTCUSD_20250813
["timestamp","ask_amount","ask_price","bid_price","bid_amount"]
[1755081827350,0.46216038,120220.0,120210.0,0.90585927]
[1755081827550,0.46216038,120220.0,120210.0,0.93085927]
[1755081829101,0.46736038,120220.0,120210.0,0.93085927]
[1755081830085,0.46736038,120220.0,120210.0,0.90585927]
[1755081830288,0.46736038,120220.0,120210.0,0.93085927]
[1755081831473,0.46736038,120220.0,120210.0,0.92882927]
[1755081832865,0.46736038,120220.0,120210.0,0.90382927]
[1755081833057,0.46736038,120220.0,120210.0,0.92882927]
[1755081833484,0.46736038,120220.0,120210.0,0.90598927]
[1755081833704,0.46415038,120220.0,120210.0,0.93098927]
[1755081833826,0.46216038,120220.0,120210.0,0.93098927]
[1755081835230,0.46216038,120220.0,120210.0,0.90598927]
[1755081835442,0.46216038,120220.0,120210.0,0.93098927]
[1755081839195,0.46216038,120220.0,120210.0,1.33742927]
[1755081839653,0.46216038,120220.0,120210.0,1.31242927]
[1755081839999,0.46216038,120220.0,120210.0,1.33742927]
[1755081840549,0.46216038,120220.0,120210.0,0.93098927]
[1755081841627,0.46216038,120220.0,120210.0,1.01840927]
[1755081842044,0.00321,120230.0,120220.0,0.35744902]
[1755081842183,0.54325876,120230.0,120220.0,0.87389227]
[1755081842385,0.54528876,120230.0,120220.0,0.87389227]
[1755081842685,0.54528876,120230.0,120220.0,0.89880527]
[1755081843342,0.54528876,120230.0,120220.0,0.90180527]
[1755081843991,0.54528876,120230.0,120220.0,0.90380527]
[1755081851470,0.54528876,120230.0,120220.0,1.31024527]
[1755081852897,0.54528876,120230.0,120220.0,1.20664527]
[1755081854890,0.54528876,120230.0,120220.0,1.10304527]
[1755081855700,0.54528876,120230.0,120220.0,1.10502527]
[1755081857082,0.54528876,120230.0,120220.0,1.23242527]
[1755081857342,0.54528876,120230.0,120220.0,1.03318527]
[1755081857574,0.54528876,120230.0,120220.0,1.01573625]
[1755081858609,0.54528876,120230.0,120220.0,1.03318527]
[1755081860366,0.54207876,120230.0,120220.0,1.03310527]
[1755081860578,0.54004876,120230.0,120220.0,1.03318527]
[1755081861032,0.54004876,120230.0,120220.0,1.01573625]
[1755081861240,0.54004876,120230.0,120220.0,1.03318527]
[1755081861460,0.54004876,120230.0,120220.0,1.24038527]
[1755081861666,0.54004876,120230.0,120220.0,1.31222527]
[1755081861869,0.54004876,120230.0,120220.0,1.20862527]
[1755081862073,0.54004876,120230.0,120220.0,1.33602527]
[1755081862691,0.54004876,120230.0,120220.0,1.33910527]
[1755081864065,0.54004876,120230.0,120220.0,1.03626527]
[1755081865834,0.54004876,120230.0,120220.0,0.90886527]
[1755081865983,0.54004876,120230.0,120220.0,1.03314527]
[1755081866667,0.54004876,120230.0,120220.0,1.12056527]
[1755081867296,0.54207876,120230.0,120220.0,1.12056527]
[1755081867625,0.54526876,120230.0,120220.0,1.12056527]
[1755081868471,0.54207876,120230.0,120220.0,1.12056527]
[1755081871480,0.54207876,120230.0,120220.0,1.32776527]
[1755081871663,0.54207876,120230.0,120220.0,1.52700527]
[1755081872315,0.54004876,120230.0,120220.0,0.99320527]
[1755081872553,0.54004876,120230.0,120220.0,1.12346527]
[1755081873506,0.54004876,120230.0,120220.0,1.14846527]
[1755081873888,0.54004876,120230.0,120220.0,1.02126527]
[1755081874103,0.54004876,120230.0,120220.0,1.14542527]
[1755081874308,0.54004876,120230.0,120220.0,1.01826527]
[1755081874514,0.54004876,120230.0,120220.0,1.14942527]
[1755081874949,0.54004876,120230.0,120220.0,1.14542527]
[1755081875166,0.54004876,120230.0,120220.0,1.15042527]
[1755081875300,0.54004876,120230.0,120220.0,1.14842527]
[1755081875705,0.54004876,120230.0,120220.0,1.15142527]
[1755081875920,0.54004876,120230.0,120220.0,1.14842527]
[1755081876272,0.54004876,120230.0,120220.0,1.15242527]
[1755081877860,0.54004876,120230.0,120220.0,1.02526527]
[1755081878066,0.54004876,120230.0,120220.0,1.15262527]
[1755081881477,0.54004876,120230.0,120220.0,1.55894527]
[1755081882075,0.54004876,120230.0,120220.0,1.45538527]
[1755081884163,0.54004876,120230.0,120220.0,1.35182527]
[1755081884604,0.54004876,120230.0,120220.0,1.22446527]
[1755081884809,0.54529876,120230.0,120220.0,1.02022527]
[1755081885232,0.54529876,120230.0,120220.0,1.14750527]
[1755081887717,0.54529876,120230.0,120220.0,1.14758527]
[1755081889290,0.54529876,120230.0,120220.0,1.14754527]
[1755081891507,0.54529876,120230.0,120220.0,1.45030527]
[1755081891747,0.54529876,120230.0,120220.0,1.34670527]
[1755081892364,0.54529876,120230.0,120220.0,1.32170527]
[1755081892571,0.54529876,120230.0,120220.0,1.34670527]
[1755081894619,0.54529876,120230.0,120220.0,1.32170527]
[1755081894788,0.54529876,120230.0,120220.0,1.34670527]
[1755081895620,0.54529876,120230.0,120220.0,1.12250527]
[1755081895828,0.54529876,120230.0,120220.0,1.14750527]
[1755081896023,0.54210876,120230.0,120220.0,1.14948527]
[1755081897458,0.54210876,120230.0,120220.0,1.13203625]
[1755081897685,0.54210876,120230.0,120220.0,1.14948527]
[1755081898046,0.54210876,120230.0,120220.0,1.12452527]
[1755081898349,0.54210876,120230.0,120220.0,1.14952527]
[1755081898844,0.54210876,120230.0,120220.0,1.02228527]
[1755081899098,0.54210876,120230.0,120220.0,1.14956527]
[1755081900362,0.54534876,120230.0,120220.0,1.14956527]
[1755081900585,0.54534876,120230.0,120220.0,1.14750527]
[1755081900984,0.54534876,120230.0,120220.0,1.06008527]
[1755081901184,0.54534876,120230.0,120220.0,1.06016527]
[1755081901393,0.54534876,120230.0,120220.0,1.06020527]
[1755081901609,0.54534876,120230.0,120220.0,1.23556527]
[1755081901981,0.54534876,120230.0,120220.0,1.13200527]
[1755081902156,0.54534876,120230.0,120220.0,1.25936527]
[1755081903254,0.54534876,120230.0,120220.0,1.03516527]
[1755081903512,0.54534876,120230.0,120220.0,1.06016527]
[1755081904006,0.54534876,120230.0,120220.0,1.03512527]
[1755081904637,0.54534876,120230.0,120220.0,0.90780527]
[1755081904850,0.54534876,120230.0,120220.0,1.03512527]
[1755081906801,0.54534876,120230.0,120220.0,1.06012527]
[1755081907027,0.54534876,120230.0,120220.0,1.06016527]
[1755081909271,0.54534876,120230.0,120220.0,1.03516527]
[1755081911481,0.54534876,120230.0,120220.0,1.44148527]
[1755081912105,0.54534876,120230.0,120220.0,0.74955625]
[1755081912327,0.54534876,120230.0,120220.0,0.55035625]
[1755081912561,0.54534876,120230.0,120220.0,1.01771625]
[1755081912797,0.54534876,120230.0,120220.0,1.03516527]
[1755081913554,0.54534876,120230.0,120220.0,0.90780527]
[1755081913745,0.54534876,120230.0,120220.0,1.03516527]
[1755081913950,0.54534876,120230.0,120220.0,1.03116527]
[1755081914152,0.54534876,120230.0,120220.0,0.69116527]
[1755081914388,0.54534876,120230.0,120220.0,0.68816527]
[1755081914589,0.54534876,120230.0,120220.0,0.69116527]
[1755081916662,0.54534876,120230.0,120220.0,0.56380527]
[1755081916899,0.54534876,120230.0,120220.0,0.90380527]
[1755081917133,0.54534876,120230.0,120220.0,1.03112527]
[1755081917674,0.54534876,120230.0,120220.0,0.69112527]
[1755081917890,0.54534876,120230.0,120220.0,1.03112527]
[1755081919345,0.54534876,120230.0,120220.0,0.90380527]
[1755081919473,0.54534876,120230.0,120220.0,1.03104527]
[1755081921391,0.54534876,120230.0,120220.0,1.33388527]
[1755081922580,0.54534876,120230.0,120220.0,1.33592527]
[1755081922796,0.54534876,120230.0,120220.0,1.03308527]
[1755081922797,0.54004876,120230.0,120220.0,1.03308527]
[1755081923181,0.54217876,120230.0,120220.0,1.03308527]
[1755081923572,0.54541876,120230.0,120220.0,1.03308527]
[1755081923772,0.54541876,120230.0,120220.0,1.03100527]
[1755081923773,0.54004876,120230.0,120220.0,1.03100527]
[1755081923972,0.54541876,120230.0,120220.0,1.03308527]
[1755081924539,0.54541876,120230.0,120220.0,0.90588527]
[1755081924741,0.54541876,120230.0,120220.0,1.03304527]
[1755081925570,0.54217876,120230.0,120220.0,1.03304527]
[1755081925711,0.54541876,120230.0,120220.0,1.03304527]
[1755081925911,0.54541876,120230.0,120220.0,0.90588527]
[1755081926127,0.54541876,120230.0,120220.0,1.03304527]
[1755081927391,0.54217876,120230.0,120220.0,1.03304527]
[1755081928191,0.54004876,120230.0,120220.0,1.03626527]
[1755081930317,0.54004876,120230.0,120220.0,1.03622527]
[1755081930734,0.54004876,120230.0,120220.0,1.01877625]
[1755081930915,0.54004876,120230.0,120220.0,0.90910527]
[1755081931140,0.54004876,120230.0,120220.0,1.03622527]
[1755081931360,0.54004876,120230.0,120220.0,0.92696553]
[1755081931585,0.54004876,120230.0,120220.0,1.35692553]
[1755081933289,0.53453836,120230.0,120220.0,1.25332553]
[1755081933501,0.53453836,120230.0,120220.0,1.05408553]
[1755081934528,0.53453836,120230.0,120220.0,1.03622527]
[1755081934757,0.53453836,120230.0,120220.0,0.90910527]
[1755081934966,0.53453836,120230.0,120220.0,1.03296527]
[1755081935679,0.53651836,120230.0,120220.0,0.90588527]
[1755081935858,0.53949836,120230.0,120220.0,1.03092527]
[1755081936085,0.53949836,120230.0,120220.0,0.90380527]
[1755081936295,0.53949836,120230.0,120220.0,1.01347625]
[1755081936680,0.53949836,120230.0,120220.0,1.03092527]
[1755081937600,0.53949836,120230.0,120220.0,0.90380527]
[1755081937806,0.53949836,120230.0,120220.0,1.03092527]
[1755081939079,0.53949836,120230.0,120220.0,1.03088527]
[1755081939691,0.53949836,120230.0,120220.0,0.90380527]
[1755081939895,0.53949836,120230.0,120220.0,1.03088527]
[1755081941641,0.53949836,120230.0,120220.0,1.33372527]
[1755081942347,0.92201547,120230.0,120220.0,0.76304527]
[1755081942489,0.96984547,120230.0,120220.0,0.86557227]
[1755081942689,0.96984547,120230.0,120220.0,0.66633227]
[1755081942907,0.96984547,120230.0,120220.0,0.66637227]
[1755081943324,0.96984547,120230.0,120220.0,0.66137227]
[1755081943730,0.96984547,120230.0,120220.0,0.66537227]
[1755081943930,0.96984547,120230.0,120220.0,0.66437227]
[1755081944136,0.96984547,120230.0,120220.0,0.66137227]
[1755081944672,0.96984547,120230.0,120220.0,0.66337227]
[1755081945106,0.58732836,120230.0,120220.0,1.00337227]
[1755081947558,0.58732836,120230.0,120220.0,1.00329227]
[1755081951645,0.58732836,120230.0,120220.0,1.30613227]
[1755081952493,0.96984547,120230.0,120220.0,1.17873227]
[1755081952701,0.96984547,120230.0,120220.0,1.20245227]
[1755081953110,0.58732836,120230.0,120220.0,1.20245227]
[1755081953309,0.96984547,120230.0,120220.0,1.20245227]
[1755081954980,0.96984547,120230.0,120220.0,1.00321227]
[1755081955217,0.58732836,120230.0,120220.0,0.88589227]
[1755081955403,0.56449836,120230.0,120220.0,1.01321227]
[1755081956337,0.94701547,120230.0,120220.0,1.01321227]
[1755081956760,0.56449836,120230.0,120220.0,1.01321227]
[1755081959498,0.56761836,120230.0,120220.0,1.02165903]
[1755081959947,0.56761836,120230.0,120220.0,0.89433903]
[1755081960245,0.95013547,120230.0,120220.0,1.02157903]
[1755081960477,0.95013547,120230.0,120220.0,0.54589227]
[1755081961099,0.95013547,120230.0,120220.0,0.67309227]
[1755081961427,0.95013547,120230.0,120220.0,0.97597227]
[1755081964969,0.56761836,120230.0,120220.0,0.97597227]
[1755081965179,0.95013547,120230.0,120220.0,0.97597227]
[1755081965796,0.95013547,120230.0,120220.0,0.87233227]
[1755081966506,0.97505947,120230.0,120220.0,0.44572]
[1755081966715,0.97505947,120230.0,120220.0,0.57288]
[1755081967701,0.97505947,120230.0,120220.0,0.57088]
[1755081967984,0.97505947,120230.0,120220.0,0.57188]
[1755081968397,0.95013547,120230.0,120220.0,0.57188]
[1755081968936,0.56761836,120230.0,120220.0,0.57188]
[1755081969106,0.95013547,120230.0,120220.0,0.57184]
[1755081971518,0.95013547,120230.0,120220.0,0.87472]
[1755081975016,0.94564587,120230.0,120220.0,0.87472]
[1755081976036,0.94564587,120230.0,120220.0,0.771]
[1755081977520,0.94564587,120230.0,120220.0,0.644]
[1755081977927,0.94564587,120230.0,120220.0,0.57172]
[1755081978438,0.86564587,120230.0,120220.0,0.44472]
[1755081978635,0.86564587,120230.0,120220.0,0.57172]
[1755081981412,0.86564587,120230.0,120220.0,0.67536]
[1755081981622,0.86564587,120230.0,120220.0,0.87464]
[1755081982536,0.48312876,120230.0,120220.0,0.87464]
[1755081982699,0.86564587,120230.0,120220.0,0.87472]
[1755081985345,0.47816876,120230.0,120220.0,0.64905]
[1755081985484,0.45316876,120230.0,120220.0,0.85889325]
[1755081985691,0.47816876,120230.0,120220.0,0.54994227]
[1755081985898,0.47816876,120230.0,120220.0,0.67706227]
[1755081990649,0.47816876,120230.0,120220.0,0.52744325]
[1755081990650,0.48029876,120230.0,120220.0,0.52744325]
[1755081990908,0.86595587,120230.0,120220.0,0.44472]
[1755081991153,0.91428287,120230.0,120220.0,0.4718]
[1755081991559,0.91428287,120230.0,120220.0,0.77472]
[1755081992290,0.89088287,120230.0,120220.0,0.64664]
[1755081992537,0.50836576,120230.0,120220.0,0.543]
[1755081992749,0.89088287,120230.0,120220.0,0.67008]
[1755081993169,0.86595587,120230.0,120220.0,0.67008]
[1755081994986,0.86595587,120230.0,120220.0,0.4708]
[1755081996115,0.86595587,120230.0,120220.0,0.34572]
[1755081996116,0.45529876,120230.0,120220.0,0.34572]
[1755081996361,0.48029876,120230.0,120220.0,0.47272]
[1755081996807,0.45316876,120230.0,120220.0,0.47272]
[1755081997274,0.47816876,120230.0,120220.0,0.47272]
[1755081998599,0.47816876,120230.0,120220.0,0.34572]
[1755081998800,0.47816876,120230.0,120220.0,0.47272]
[1755081999007,0.47816876,120230.0,120220.0,0.44892227]
[1755081999212,0.47816876,120230.0,120220.0,0.57588227]
[1755082001563,0.47816876,120230.0,120220.0,0.87884227]
[1755082003543,0.47816876,120230.0,120220.0,0.77520227]
[1755082004870,0.47816876,120230.0,120220.0,0.75775325]
[1755082005292,0.47816876,120230.0,120220.0,0.77520227]
[1755082005802,0.47816876,120230.0,120220.0,0.57588227]
[1755082006011,0.47816876,120230.0,120220.0,0.67588227]
[1755082008330,0.45316876,120230.0,120220.0,0.70179727]
[1755082008527,0.45316876,120230.0,120220.0,1.04179727]
[1755082008934,0.45316876,120230.0,120220.0,1.04103727]
[1755082009349,0.45316876,120230.0,120220.0,1.04303727]
[1755082010449,0.45316876,120230.0,120220.0,0.91583727]
[1755082010644,0.45316876,120230.0,120220.0,1.04303727]
[1755082011494,0.45316876,120230.0,120220.0,1.25023727]
[1755082011699,0.45316876,120230.0,120220.0,1.44951727]
[1755082012434,0.45316876,120230.0,120220.0,1.34591727]
[1755082013092,0.45316876,120230.0,120220.0,1.24231727]
[1755082013296,0.45316876,120230.0,120220.0,1.04303727]
[1755082014956,0.45316876,120230.0,120220.0,0.91583727]
[1755082015089,0.45316876,120230.0,120220.0,1.04295727]
[1755082016391,0.45316876,120230.0,120220.0,1.04299727]
[1755082017770,0.45316876,120230.0,120220.0,0.91583727]
[1755082017931,0.45316876,120230.0,120220.0,1.04295727]
[1755082019087,0.45316876,120230.0,120220.0,1.04291727]
[1755082020030,0.45316876,120230.0,120220.0,0.91383727]
[1755082020394,0.45316876,120230.0,120220.0,0.91683727]
[1755082020719,0.45316876,120230.0,120220.0,1.04407727]
[1755082021282,0.45316876,120230.0,120220.0,0.91683727]
[1755082021539,0.45316876,120230.0,120220.0,1.45047727]
[1755082021747,0.45316876,120230.0,120220.0,1.44747727]
[1755082021948,0.45316876,120230.0,120220.0,1.45147727]
[1755082022582,0.45316876,120230.0,120220.0,1.44644727]
[1755082022739,0.45316876,120230.0,120220.0,1.45156727]
[1755082024399,0.45316876,120230.0,120220.0,1.34796727]
[1755082025096,0.45316876,120230.0,120220.0,1.11716727]
[1755082025317,0.45316876,120230.0,120220.0,1.04516727]
[1755082025841,0.45316876,120230.0,120220.0,0.91487727]
[1755082026044,0.45316876,120230.0,120220.0,1.04004727]
[1755082026255,0.45520876,120230.0,120220.0,1.04211727]
[1755082026455,0.45838876,120230.0,120220.0,1.04211727]
[1755082026937,0.45520876,120230.0,120220.0,1.04211727]
[1755082027359,0.45838876,120230.0,120220.0,1.04211727]
[1755082027913,0.45838876,120230.0,120220.0,1.04004727]
[1755082031481,0.45838876,120230.0,120220.0,1.44648727]
[1755082032165,0.45838876,120230.0,120220.0,1.34288727]
[1755082032373,0.45838876,120230.0,120220.0,1.23928727]
[1755082034160,0.45838876,120230.0,120220.0,1.34288727]
[1755082035208,0.45838876,120230.0,120220.0,1.44648727]
[1755082036198,0.45838876,120230.0,120220.0,1.34288727]
[1755082040042,0.45838876,120230.0,120220.0,1.04004727]
[1755082041207,0.45838876,120230.0,120220.0,1.02259825]
[1755082041430,0.45838876,120230.0,120220.0,1.44648727]
[1755082044024,0.45838876,120230.0,120220.0,1.23928727]
[1755082046086,0.45838876,120230.0,120220.0,1.04004727]
[1755082047950,0.45838876,120230.0,120220.0,0.91280727]
[1755082048126,0.45838876,120230.0,120220.0,1.03976727]
[1755082048332,0.45838876,120230.0,120220.0,1.03980727]
[1755082049762,0.45838876,120230.0,120220.0,0.91280727]
[1755082049978,0.45838876,120230.0,120220.0,1.03984727]
[1755082051296,0.45838876,120230.0,120220.0,0.89535825]
[1755082051512,0.45838876,120230.0,120220.0,1.42875825]
[1755082051722,0.45838876,120230.0,120220.0,1.44620727]
[1755082051923,0.48338876,120230.0,120220.0,1.31769227]
[1755082052714,0.48338876,120230.0,120220.0,0.88789227]
[1755082053096,0.48338876,120230.0,120220.0,1.01497227]
[1755082053308,0.48338876,120230.0,120220.0,0.67497227]
[1755082053875,0.48338876,120230.0,120220.0,0.67197227]
[1755082054237,0.48338876,120230.0,120220.0,0.67297227]
[1755082055622,0.48338876,120230.0,120220.0,1.01297227]
[1755082059048,0.48338876,120230.0,120220.0,0.88589227]
[1755082059462,0.48338876,120230.0,120220.0,1.01289227]
[1755082060315,0.48338876,120230.0,120220.0,0.88589227]
[1755082060549,0.93275358,120230.0,120220.0,0.46316902]
[1755082060701,0.93275358,120230.0,120220.0,0.44572]
[1755082060895,0.93275358,120230.0,120220.0,0.57272]
[1755082061520,0.93275358,120230.0,120220.0,0.87356]
[1755082062881,0.55023647,120230.0,120220.0,0.87356]
[1755082063118,0.93275358,120230.0,120220.0,0.87356]
[1755082066329,0.86590587,120230.0,120220.0,0.87356]
[1755082067033,0.86590587,120230.0,120220.0,0.44372]
[1755082067262,0.86590587,120230.0,120220.0,0.57076]
[1755082067591,0.86590587,120230.0,120220.0,0.44372]
[1755082067802,0.86590587,120230.0,120220.0,0.57072]
[1755082068230,0.48338876,120230.0,120220.0,0.57072]
[1755082070893,0.48338876,120230.0,120220.0,0.44372]
[1755082071100,0.48338876,120230.0,120220.0,0.57068]
[1755082071514,0.48020876,120230.0,120220.0,0.87555]
[1755082072375,0.48320876,120230.0,120220.0,0.87555]
[1755082073357,0.45820876,120230.0,120220.0,0.87555]
[1755082073591,0.48320876,120230.0,120220.0,0.87555]
[1755082074562,0.86572587,120230.0,120220.0,0.7466]
[1755082074766,0.86572587,120230.0,120220.0,0.87352]
[1755082075206,0.86572587,120230.0,120220.0,0.76992]
[1755082075414,0.86572587,120230.0,120220.0,0.643]
[1755082075551,0.48320876,120230.0,120220.0,0.76992]
[1755082075774,0.86572587,120230.0,120220.0,0.44372]
[1755082075977,0.86572587,120230.0,120220.0,0.57064]
[1755082077397,0.86572587,120230.0,120220.0,0.44372]
[1755082077724,0.86572587,120230.0,120220.0,0.5706]
[1755082078275,0.86572587,120230.0,120220.0,0.44372]
[1755082078500,0.86572587,120230.0,120220.0,0.5706]
[1755082080554,0.86572587,120230.0,120220.0,0.57056]
[1755082080768,0.48320876,120230.0,120220.0,0.57056]
[1755082080973,0.86572587,120230.0,120220.0,0.57056]
[1755082081551,0.48320876,120230.0,120220.0,0.87348]
[1755082081791,0.48320876,120230.0,120220.0,0.8742]
[1755082082448,0.86572587,120230.0,120220.0,0.8742]
[1755082085369,0.86572587,120230.0,120220.0,0.77056]
[1755082085569,0.48320876,120230.0,120220.0,0.77056]
[1755082085920,0.45520876,120230.0,120220.0,0.77264]
[1755082086110,0.47816876,120230.0,120220.0,0.77264]
[1755082086314,0.47816876,120230.0,120220.0,0.77578]
[1755082086520,0.47816876,120230.0,120220.0,0.67667227]
[1755082088986,0.47816876,120230.0,120220.0,0.67767227]
[1755082089636,0.47816876,120230.0,120220.0,0.55011227]
[1755082090068,0.47816876,120230.0,120220.0,0.67767227]
[1755082091210,0.45316876,120230.0,120220.0,0.67767227]
[1755082091656,0.47816876,120230.0,120220.0,0.98059227]
[1755082091869,0.47816876,120230.0,120220.0,1.34547227]
[1755082092093,0.47816876,120230.0,120220.0,1.24183227]
[1755082092346,0.45316876,120230.0,120220.0,1.11431227]
[1755082092574,0.45316876,120230.0,120220.0,1.04283227]
[1755082092800,0.45316876,120230.0,120220.0,1.04279227]
[1755082093249,0.45316876,120230.0,120220.0,1.04179227]
[1755082093465,0.45316876,120230.0,120220.0,1.04379227]
[1755082096683,0.45316876,120230.0,120220.0,0.91603227]
[1755082097123,0.45316876,120230.0,120220.0,1.04371227]
[1755082097746,0.45316876,120230.0,120220.0,0.91603227]
[1755082097955,0.45316876,120230.0,120220.0,1.04375227]
[1755082101600,0.45316876,120230.0,120220.0,1.45019227]
[1755082102439,0.45316876,120230.0,120220.0,1.11527227]
[1755082102611,0.45316876,120230.0,120220.0,1.24291227]
[1755082103333,0.45316876,120230.0,120220.0,1.11527227]
[1755082103539,0.45316876,120230.0,120220.0,1.24291227]
[1755082105147,0.45316876,120230.0,120220.0,1.22546325]
[1755082105358,0.45316876,120230.0,120220.0,0.91603227]
[1755082105563,0.45316876,120230.0,120220.0,1.04367227]
[1755082105985,0.45316876,120230.0,120220.0,0.91603227]
[1755082108647,0.45316876,120230.0,120220.0,0.89858325]
[1755082108856,0.45316876,120230.0,120220.0,0.91603227]
[1755082120805,0.45316876,120230.0,120220.0,0.91403227]
[1755082121034,0.45316876,120230.0,120220.0,0.91603227]
[1755082121222,0.45316876,120230.0,120220.0,0.91903227]
[1755082125738,0.45531876,120230.0,120220.0,0.91589227]
[1755082125940,0.45837876,120230.0,120220.0,1.04133227]
[1755082126182,0.45795876,120230.0,120220.0,0.91381227]
[1755082126395,0.45795876,120230.0,120220.0,1.04133227]
[1755082127391,0.45795876,120230.0,120220.0,0.91381227]
[1755082127599,0.45795876,120230.0,120220.0,1.04133227]
[1755082127830,0.45795876,120230.0,120220.0,1.04129227]
[1755082131523,0.45795876,120230.0,120220.0,1.44773227]
[1755082131968,0.48295876,120230.0,120220.0,1.21665227]
[1755082132220,0.48295876,120230.0,120220.0,1.11305227]
[1755082132444,0.48295876,120230.0,120220.0,0.89636325]
[1755082132666,0.48295876,120230.0,120220.0,1.04121227]
[1755082133138,0.48295876,120230.0,120220.0,1.03821227]
[1755082133460,0.48295876,120230.0,120220.0,0.91281227]
[1755082133657,0.48295876,120230.0,120220.0,1.03821227]
[1755082133869,0.48295876,120230.0,120220.0,0.91081227]
[1755082134290,0.48295876,120230.0,120220.0,1.03817227]
[1755082141533,0.48295876,120230.0,120220.0,1.34101227]
[1755082141757,0.48295876,120230.0,120220.0,1.34089227]
[1755082142169,0.48295876,120230.0,120220.0,1.21365227]
[1755082142583,0.45274876,120230.0,120220.0,1.04314227]
[1755082142780,0.45775876,120230.0,120220.0,0.91081227]
[1755082142984,0.45775876,120230.0,120220.0,1.03797227]
[1755082143533,0.45775876,120230.0,120220.0,1.03992227]
[1755082150813,0.45775876,120230.0,120220.0,1.06449055]
[1755082151019,0.45775876,120230.0,120220.0,0.91081227]
[1755082151230,0.48275876,120230.0,120220.0,1.02040325]
[1755082151403,0.56275876,120230.0,120220.0,0.89336325]
[1755082151651,0.56275876,120230.0,120220.0,1.34065227]
[1755082153484,0.56275876,120230.0,120220.0,1.23705227]
[1755082153890,0.56244304,120230.0,120220.0,1.23705227]
[1755082154872,0.51244304,120230.0,120220.0,1.23705227]
[1755082155745,0.51244304,120230.0,120220.0,0.91081227]
[1755082155956,0.51244304,120230.0,120220.0,1.03773227]
[1755082157192,0.51244304,120230.0,120220.0,1.03769227]
[1755082157347,0.51244304,120230.0,120220.0,1.02024325]
[1755082157511,0.51244304,120230.0,120220.0,1.03769227]
[1755082157918,0.51244304,120230.0,120220.0,0.91081227]
[1755082158307,0.51244304,120230.0,120220.0,1.01277227]
[1755082160406,0.51244304,120230.0,120220.0,1.01281227]
[1755082160819,0.51173706,120230.0,120220.0,1.01281227]
[1755082161725,0.51173706,120230.0,120220.0,1.31565227]
[1755082164778,0.51173706,120230.0,120220.0,1.34057327]
[1755082166309,0.51173706,120230.0,120220.0,1.03968327]
[1755082167813,0.51173706,120230.0,120220.0,0.91276327]
[1755082168018,0.48172706,120230.0,120220.0,0.91276327]
[1755082168242,0.50672706,120230.0,120220.0,0.91594327]
[1755082168449,0.50672706,120230.0,120220.0,1.04286327]
[1755082168826,0.48172706,120230.0,120220.0,1.04286327]
[1755082169223,0.48172706,120230.0,120220.0,0.91594327]
[1755082169809,0.48172706,120230.0,120220.0,1.04286327]
[1755082171660,0.48172706,120230.0,120220.0,1.44930327]
[1755082172076,0.48172706,120230.0,120220.0,1.21878327]
[1755082172376,0.48172706,120230.0,120220.0,1.34570327]
[1755082176120,0.48172706,120230.0,120220.0,0.91594327]
[1755082176324,0.48172706,120230.0,120220.0,1.04282327]
[1755082180806,0.48172706,120230.0,120220.0,1.04082327]
[1755082181155,0.48172706,120230.0,120220.0,1.04382327]
[1755082181509,0.48172706,120230.0,120220.0,1.34666327]
[1755082182096,0.48172706,120230.0,120220.0,1.34766327]
[1755082183481,0.48172706,120230.0,120220.0,1.24406327]
[1755082184116,0.48172706,120230.0,120220.0,1.11718327]
[1755082184254,0.48172706,120230.0,120220.0,1.24406327]
[1755082186302,0.48172706,120230.0,120220.0,1.04482327]
[1755082187296,0.48172706,120230.0,120220.0,0.91794327]
[1755082187493,0.48172706,120230.0,120220.0,1.04498327]
[1755082188505,0.48172706,120230.0,120220.0,0.91794327]
[1755082188704,0.48172706,120230.0,120220.0,1.04498327]
[1755082190186,0.48172706,120230.0,120220.0,0.91794327]
[1755082190489,0.48172706,120230.0,120220.0,1.04494327]
[1755082191413,0.48172706,120230.0,120220.0,1.14854327]
[1755082191613,0.48172706,120230.0,120220.0,1.45138327]
[1755082193666,0.48172706,120230.0,120220.0,1.24418327]
[1755082195754,0.48172706,120230.0,120220.0,1.04494327]
[1755082196639,0.48172706,120230.0,120220.0,1.02749425]
[1755082198480,0.48172706,120230.0,120220.0,1.04176327]
[1755082200257,0.48172706,120230.0,120220.0,1.02431425]
[1755082200476,0.48172706,120230.0,120220.0,1.04176327]
[1755082201569,0.48172706,120230.0,120220.0,1.34460327]
[1755082202382,0.48172706,120230.0,120220.0,1.11400327]
[1755082202587,0.48172706,120230.0,120220.0,1.24104327]
[1755082203210,0.48371706,120230.0,120220.0,1.24104327]
[1755082204340,0.48371706,120230.0,120220.0,1.04180327]
[1755082204582,0.48371706,120230.0,120220.0,0.91476327]
[1755082204788,0.48371706,120230.0,120220.0,1.04180327]
[1755082205427,0.48172706,120230.0,120220.0,0.91476327]
[1755082205619,0.48172706,120230.0,120220.0,1.04180327]
[1755082207498,0.48172706,120230.0,120220.0,1.04473327]
[1755082210611,0.48172706,120230.0,120220.0,1.06996421]
[1755082211337,0.48172706,120230.0,120220.0,1.06703421]
[1755082211541,0.48172706,120230.0,120220.0,1.36987421]
[1755082212076,0.48172706,120230.0,120220.0,1.26627421]
[1755082212254,0.48172706,120230.0,120220.0,1.26920421]
[1755082213229,0.48172706,120230.0,120220.0,1.26620421]
[1755082213432,0.48172706,120230.0,120220.0,1.26820421]
[1755082213753,0.48172706,120230.0,120220.0,1.27020421]
[1755082214160,0.48172706,120230.0,120220.0,1.07096421]
[1755082221370,0.48172706,120230.0,120220.0,1.17456421]
[1755082221669,0.48172706,120230.0,120220.0,1.47740421]
[1755082223674,0.48172706,120230.0,120220.0,1.45995519]
[1755082224598,0.48172706,120230.0,120220.0,1.07096421]
[1755082227039,0.48172706,120230.0,120220.0,1.05351519]
[1755082230822,0.48172706,120230.0,120220.0,1.06803421]
[1755082231567,0.48172706,120230.0,120220.0,1.47447421]
[1755082232495,0.48172706,120230.0,120220.0,1.37087421]
[1755082234386,0.48172706,120230.0,120220.0,1.26727421]
[1755082234618,0.48172706,120230.0,120220.0,1.27033421]
[1755082235242,0.48172706,120230.0,120220.0,0.94405421]
[1755082235420,0.48172706,120230.0,120220.0,1.07109421]
[1755082235631,0.48172706,120230.0,120220.0,1.06803421]
[1755082241543,0.48172706,120230.0,120220.0,1.47447421]
[1755082241895,0.48172706,120230.0,120220.0,1.37087421]
[1755082242099,0.48172706,120230.0,120220.0,1.24383421]
[1755082242358,0.48172706,120230.0,120220.0,1.26719421]
[1755082243727,0.47503793,120230.0,120220.0,1.26162592]
[1755082244375,0.47503793,120230.0,120220.0,1.06238592]
[1755082246138,0.47503793,120230.0,120220.0,0.93542592]
[1755082246361,0.47503793,120230.0,120220.0,1.06238592]
[1755082251470,0.47503793,120230.0,120220.0,1.46882592]
[1755082251830,0.47718793,120230.0,120220.0,1.46882592]
[1755082253371,0.47718793,120230.0,120220.0,0.93542592]
[1755082253663,0.47718793,120230.0,120220.0,1.06238592]
[1755082256368,0.47718793,120230.0,120220.0,1.0449369]
[1755082256580,0.47718793,120230.0,120220.0,1.06238592]
[1755082257583,0.47718793,120230.0,120220.0,1.06242592]
[1755082259410,0.47718793,120230.0,120220.0,0.93542592]